{"text_format":"1","workbook":"xlsx","n_sheets":3,"sheets":["Names","Lists","ورقة1"],"not_rendered":{"charts":0,"images":0,"macros":1,"external_links":0,"defined_names":2,"comments":0,"pivot_tables":0},"unopened":[],"bounds":{"document_bytes":16777216,"sheet_cells":100000,"rows_first":2000,"rows_last":500,"rows_between":2000,"halvings":0,"cell_chars":16384,"cell_head_chars":4096},"cells_cut":0,"cells_raw":0,"read":"whole","date_system":"1900"}

{"sheet":"Names","index":0,"n_rows":99,"n_cols":50,"rows_kept":99,"cut":false,"hidden":false,"merged":[[0,22,2,22],[0,0,2,0],[0,2,2,2],[0,4,2,4],[0,6,2,6],[0,8,2,8],[0,10,2,10],[0,12,2,12],[0,14,2,14],[0,16,2,16],[0,18,2,18],[0,20,2,20],[0,46,2,46],[0,24,2,24],[0,26,2,26],[0,28,2,28],[0,30,2,30],[0,32,2,32],[0,34,2,34],[0,36,2,36],[0,38,2,38],[0,40,2,40],[0,42,2,42],[0,44,2,44]]}
["الرقم","العاشر أ","الرقم","العاشر ب","الرقم","العاشر ج","الرقم","العاشر د","الرقم","الحادي عشر العلمي أ","الرقم","الحادي عشر العلمي ب","الرقم","الحادي عشر العلمي ج","الرقم","الحادي عشر العلمي د","الرقم","الحادي عشر الادبي أ","الرقم","الحادي عشر الادبي ب","الرقم","الحادي عشر الادبي ج","الرقم","الحادي عشر الادبي د","الرقم","الحادي عشر الادبي هـ","الرقم","الحادي عشر الادبي و","الرقم","الثاني عشر العلمي ا","الرقم","الثاني عشر العلمي ب","الرقم","الثاني عشر العلمي ج","الرقم","الثاني عشر الادبي أ","الرقم","الثاني عشر الادبي ب","الرقم","الثاني عشر الادبي ج","الرقم","الثاني عشر الادبي د ","الرقم","الثاني عشر الادبي هـ","الرقم","الثاني عشر الادبي و","الرقم","الثاني عشر الادبي ز"]
[null,"عدد طلاب الشعبة ",null,"عدد طلاب الشعبة ",null,"عدد طلاب الشعبة ",null,"عدد طلاب الشعبة ",null,"عدد طلاب الشعبة ",null,"عدد طلاب الشعبة ",null,"عدد طلاب الشعبة ",null,"عدد طلاب الشعبة ",null,"عدد طلاب الشعبة ",null,"عدد طلاب الشعبة ",null,"عدد طلاب الشعبة ",null,"عدد طلاب الشعبة ",null,"عدد طلاب الشعبة ",null,"عدد طلاب الشعبة ",null,"عدد طلاب الشعبة ",null,"عدد طلاب الشعبة ",null,"عدد طلاب الشعبة ",null,"عدد طلاب الشعبة ",null,"عدد طلاب الشعبة ",null,"عدد طلاب الشعبة ",null,"عدد طلاب الشعبة ",null,"عدد طلاب الشعبة ",null,"عدد طلاب الشعبة ",null,"عدد طلاب الشعبة "]
[null,{"$f":"COUNTA(B4:B68)","v":59},null,{"$f":"COUNTA(D4:D68)","v":59},null,59,null,59,null,{"$f":"COUNTA(J4:J218)","v":59},null,{"$f":"COUNTA(L4:L68)","v":59},null,{"$f":"COUNTA(N4:N68)","v":59},null,{"$f":"COUNTA(P4:P218)","v":59},null,{"$f":"COUNTA(R4:R218)","v":59},null,{"$f":"COUNTA(T4:T68)","v":59},null,{"$f":"COUNTA(V4:V99)","v":59},null,{"$f":"COUNTA(X4:X68)","v":59},null,{"$f":"COUNTA(Z4:Z68)","v":59},null,{"$f":"COUNTA(AB4:AB68)","v":59},null,{"$f":"COUNTA(AD4:AD68)","v":59},null,{"$f":"COUNTA(AF4:AF68)","v":59},null,{"$f":"COUNTA(AH4:AH68)","v":59},null,{"$f":"COUNTA(AJ4:AJ68)","v":59},null,{"$f":"COUNTA(AL4:AL68)","v":59},null,{"$f":"COUNTA(AN4:AN68)","v":59},null,{"$f":"COUNTA(AP4:AP68)","v":59},null,{"$f":"COUNTA(AR4:AR68)","v":59},null,{"$f":"COUNTA(AT4:AT68)","v":59},null,{"$f":"COUNTA(AV4:AV68)","v":59},{"$f":"SUM(A3:AV3)","v":1416}]
[1,"احمد ",1," زهدي ",1," اسامة  يحيى",1," صلاح الدين ",1," وسيم ",1,"احمد",1," خليل ",1," ناصر ",1,"ابراهيم احمد موسى خضر",1,"ابراهيم صالح ابراهيم صدقه",1,"احمد علاء محمد عطيه",1,"احمد ابراهيم عبد القادر صالح",1,"حسين",1," تيسير ا",1," محفوظ",1," مسلم 1",1,"ابراهيم محمد ابراهيم العقرباوي",1,"ابراهيم ابراهيم ",1,"ابراهيم احمد عبد القادر صالح",1,"ابراهيم  خالد ابراهيم المدانات",1,"ابراهيم عيسى ",1,"ابراهيم ",1,"ايهم",1,"اسد ",null,{"$f":"COUNTIF(#REF!,\" ثقافه ماليه\")","v":{"$error":"#REF!"}}]
[2,"احمد ",2," زهدي ",2," اسامة  يحيى",2," صلاح الدين ",2," وسيم ",2,"احمد",2," خليل ",2," ناصر ",2,"ابراهيم احمد موسى خضر",2,"ابراهيم صالح ابراهيم صدقه",2,"احمد علاء محمد عطيه",2,"احمد ابراهيم عبد القادر صالح",2,"حسين",2," تيسير ا",2," محفوظ",2," مسلم 2",2,"ابراهيم محمد ابراهيم العقرباوي",2,"ابراهيم ابراهيم ",2,"ابراهيم احمد عبد القادر صالح",2,"ابراهيم  خالد ابراهيم المدانات",2,"ابراهيم عيسى ",2,"ابراهيم ",2,"ايهم",2,"اسد "]
[3,"احمد ",3," زهدي ",3," اسامة  يحيى",3," صلاح الدين ",3," وسيم ",3,"احمد",3," خليل ",3," ناصر ",3,"ابراهيم احمد موسى خضر",3,"ابراهيم صالح ابراهيم صدقه",3,"احمد علاء محمد عطيه",3,"احمد ابراهيم عبد القادر صالح",3,"حسين",3," تيسير ا",3," محفوظ",3," مسلم 3",3,"ابراهيم محمد ابراهيم العقرباوي",3,"ابراهيم ابراهيم ",3,"ابراهيم احمد عبد القادر صالح",3,"ابراهيم  خالد ابراهيم المدانات",3,"ابراهيم عيسى ",3,"ابراهيم ",3,"ايهم",3,"اسد "]
[4,"احمد ",4," زهدي ",4," اسامة  يحيى",4," صلاح الدين ",4," وسيم ",4,"احمد",4," خليل ",4," ناصر ",4,"ابراهيم احمد موسى خضر",4,"ابراهيم صالح ابراهيم صدقه",4,"احمد علاء محمد عطيه",4,"احمد ابراهيم عبد القادر صالح",4,"حسين",4," تيسير ا",4," محفوظ",4," مسلم 4",4,"ابراهيم محمد ابراهيم العقرباوي",4,"ابراهيم ابراهيم ",4,"ابراهيم احمد عبد القادر صالح",4,"ابراهيم  خالد ابراهيم المدانات",4,"ابراهيم عيسى ",4,"ابراهيم ",4,"ايهم",4,"اسد "]
[5,"احمد ",5," زهدي ",5," اسامة  يحيى",5," صلاح الدين ",5," وسيم ",5,"احمد",5," خليل ",5," ناصر ",5,"ابراهيم احمد موسى خضر",5,"ابراهيم صالح ابراهيم صدقه",5,"احمد علاء محمد عطيه",5,"احمد ابراهيم عبد القادر صالح",5,"حسين",5," تيسير ا",5," محفوظ",5," مسلم 5",5,"ابراهيم محمد ابراهيم العقرباوي",5,"ابراهيم ابراهيم ",5,"ابراهيم احمد عبد القادر صالح",5,"ابراهيم  خالد ابراهيم المدانات",5,"ابراهيم عيسى ",5,"ابراهيم ",5,"ايهم",5,"اسد "]
[6,"احمد ",6," زهدي ",6," اسامة  يحيى",6," صلاح الدين ",6," وسيم ",6,"احمد",6," خليل ",6," ناصر ",6,"ابراهيم احمد موسى خضر",6,"ابراهيم صالح ابراهيم صدقه",6,"احمد علاء محمد عطيه",6,"احمد ابراهيم عبد القادر صالح",6,"حسين",6," تيسير ا",6," محفوظ",6," مسلم 6",6,"ابراهيم محمد ابراهيم العقرباوي",6,"ابراهيم ابراهيم ",6,"ابراهيم احمد عبد القادر صالح",6,"ابراهيم  خالد ابراهيم المدانات",6,"ابراهيم عيسى ",6,"ابراهيم ",6,"ايهم",6,"اسد "]
[7,"احمد ",7," زهدي ",7," اسامة  يحيى",7," صلاح الدين ",7," وسيم ",7,"احمد",7," خليل ",7," ناصر ",7,"ابراهيم احمد موسى خضر",7,"ابراهيم صالح ابراهيم صدقه",7,"احمد علاء محمد عطيه",7,"احمد ابراهيم عبد القادر صالح",7,"حسين",7," تيسير ا",7," محفوظ",7," مسلم 7",7,"ابراهيم محمد ابراهيم العقرباوي",7,"ابراهيم ابراهيم ",7,"ابراهيم احمد عبد القادر صالح",7,"ابراهيم  خالد ابراهيم المدانات",7,"ابراهيم عيسى ",7,"ابراهيم ",7,"ايهم",7,"اسد "]
[8,"احمد ",8," زهدي ",8," اسامة  يحيى",8," صلاح الدين ",8," وسيم ",8,"احمد",8," خليل ",8," ناصر ",8,"ابراهيم احمد موسى خضر",8,"ابراهيم صالح ابراهيم صدقه",8,"احمد علاء محمد عطيه",8,"احمد ابراهيم عبد القادر صالح",8,"حسين",8," تيسير ا",8," محفوظ",8," مسلم 8",8,"ابراهيم محمد ابراهيم العقرباوي",8,"ابراهيم ابراهيم ",8,"ابراهيم احمد عبد القادر صالح",8,"ابراهيم  خالد ابراهيم المدانات",8,"ابراهيم عيسى ",8,"ابراهيم ",8,"ايهم",8,"اسد "]
[9,"احمد ",9," زهدي ",9," اسامة  يحيى",9," صلاح الدين ",9," وسيم ",9,"احمد",9," خليل ",9," ناصر ",9,"ابراهيم احمد موسى خضر",9,"ابراهيم صالح ابراهيم صدقه",9,"احمد علاء محمد عطيه",9,"احمد ابراهيم عبد القادر صالح",9,"حسين",9," تيسير ا",9," محفوظ",9," مسلم 9",9,"ابراهيم محمد ابراهيم العقرباوي",9,"ابراهيم ابراهيم ",9,"ابراهيم احمد عبد القادر صالح",9,"ابراهيم  خالد ابراهيم المدانات",9,"ابراهيم عيسى ",9,"ابراهيم ",9,"ايهم",9,"اسد "]
[10,"احمد ",10," زهدي ",10," اسامة  يحيى",10," صلاح الدين ",10," وسيم ",10,"احمد",10," خليل ",10," ناصر ",10,"ابراهيم احمد موسى خضر",10,"ابراهيم صالح ابراهيم صدقه",10,"احمد علاء محمد عطيه",10,"احمد ابراهيم عبد القادر صالح",10,"حسين",10," تيسير ا",10," محفوظ",10," مسلم 10",10,"ابراهيم محمد ابراهيم العقرباوي",10,"ابراهيم ابراهيم ",10,"ابراهيم احمد عبد القادر صالح",10,"ابراهيم  خالد ابراهيم المدانات",10,"ابراهيم عيسى ",10,"ابراهيم ",10,"ايهم",10,"اسد "]
[11,"احمد ",11," زهدي ",11," اسامة  يحيى",11," صلاح الدين ",11," وسيم ",11,"احمد",11," خليل ",11," ناصر ",11,"ابراهيم احمد موسى خضر",11,"ابراهيم صالح ابراهيم صدقه",11,"احمد علاء محمد عطيه",11,"احمد ابراهيم عبد القادر صالح",11,"حسين",11," تيسير ا",11," محفوظ",11," مسلم 11",11,"ابراهيم محمد ابراهيم العقرباوي",11,"ابراهيم ابراهيم ",11,"ابراهيم احمد عبد القادر صالح",11,"ابراهيم  خالد ابراهيم المدانات",11,"ابراهيم عيسى ",11,"ابراهيم ",11,"ايهم",11,"اسد "]
[12,"احمد ",12," زهدي ",12," اسامة  يحيى",12," صلاح الدين ",12," وسيم ",12,"احمد",12," خليل ",12," ناصر ",12,"ابراهيم احمد موسى خضر",12,"ابراهيم صالح ابراهيم صدقه",12,"احمد علاء محمد عطيه",12,"احمد ابراهيم عبد القادر صالح",12,"حسين",12," تيسير ا",12," محفوظ",12," مسلم 12",12,"ابراهيم محمد ابراهيم العقرباوي",12,"ابراهيم ابراهيم ",12,"ابراهيم احمد عبد القادر صالح",12,"ابراهيم  خالد ابراهيم المدانات",12,"ابراهيم عيسى ",12,"ابراهيم ",12,"ايهم",12,"اسد "]
[13,"احمد ",13," زهدي ",13," اسامة  يحيى",13," صلاح الدين ",13," وسيم ",13,"احمد",13," خليل ",13," ناصر ",13,"ابراهيم احمد موسى خضر",13,"ابراهيم صالح ابراهيم صدقه",13,"احمد علاء محمد عطيه",13,"احمد ابراهيم عبد القادر صالح",13,"حسين",13," تيسير ا",13," محفوظ",13," مسلم 13",13,"ابراهيم محمد ابراهيم العقرباوي",13,"ابراهيم ابراهيم ",13,"ابراهيم احمد عبد القادر صالح",13,"ابراهيم  خالد ابراهيم المدانات",13,"ابراهيم عيسى ",13,"ابراهيم ",13,"ايهم",13,"اسد "]
[14,"احمد ",14," زهدي ",14," اسامة  يحيى",14," صلاح الدين ",14," وسيم ",14,"احمد",14," خليل ",14," ناصر ",14,"ابراهيم احمد موسى خضر",14,"ابراهيم صالح ابراهيم صدقه",14,"احمد علاء محمد عطيه",14,"احمد ابراهيم عبد القادر صالح",14,"حسين",14," تيسير ا",14," محفوظ",14," مسلم 14",14,"ابراهيم محمد ابراهيم العقرباوي",14,"ابراهيم ابراهيم ",14,"ابراهيم احمد عبد القادر صالح",14,"ابراهيم  خالد ابراهيم المدانات",14,"ابراهيم عيسى ",14,"ابراهيم ",14,"ايهم",14,"اسد "]
[15,"احمد ",15," زهدي ",15," اسامة  يحيى",15," صلاح الدين ",15," وسيم ",15,"احمد",15," خليل ",15," ناصر ",15,"ابراهيم احمد موسى خضر",15,"ابراهيم صالح ابراهيم صدقه",15,"احمد علاء محمد عطيه",15,"احمد ابراهيم عبد القادر صالح",15,"حسين",15," تيسير ا",15," محفوظ",15," مسلم 15",15,"ابراهيم محمد ابراهيم العقرباوي",15,"ابراهيم ابراهيم ",15,"ابراهيم احمد عبد القادر صالح",15,"ابراهيم  خالد ابراهيم المدانات",15,"ابراهيم عيسى ",15,"ابراهيم ",15,"ايهم",15,"اسد "]
[16,"احمد ",16," زهدي ",16," اسامة  يحيى",16," صلاح الدين ",16," وسيم ",16,"احمد",16," خليل ",16," ناصر ",16,"ابراهيم احمد موسى خضر",16,"ابراهيم صالح ابراهيم صدقه",16,"احمد علاء محمد عطيه",16,"احمد ابراهيم عبد القادر صالح",16,"حسين",16," تيسير ا",16," محفوظ",16," مسلم 16",16,"ابراهيم محمد ابراهيم العقرباوي",16,"ابراهيم ابراهيم ",16,"ابراهيم احمد عبد القادر صالح",16,"ابراهيم  خالد ابراهيم المدانات",16,"ابراهيم عيسى ",16,"ابراهيم ",16,"ايهم",16,"اسد "]
[17,"احمد ",17," زهدي ",17," اسامة  يحيى",17," صلاح الدين ",17," وسيم ",17,"احمد",17," خليل ",17," ناصر ",17,"ابراهيم احمد موسى خضر",17,"ابراهيم صالح ابراهيم صدقه",17,"احمد علاء محمد عطيه",17,"احمد ابراهيم عبد القادر صالح",17,"حسين",17," تيسير ا",17," محفوظ",17," مسلم 17",17,"ابراهيم محمد ابراهيم العقرباوي",17,"ابراهيم ابراهيم ",17,"ابراهيم احمد عبد القادر صالح",17,"ابراهيم  خالد ابراهيم المدانات",17,"ابراهيم عيسى ",17,"ابراهيم ",17,"ايهم",17,"اسد "]
[18,"احمد ",18," زهدي ",18," اسامة  يحيى",18," صلاح الدين ",18," وسيم ",18,"احمد",18," خليل ",18," ناصر ",18,"ابراهيم احمد موسى خضر",18,"ابراهيم صالح ابراهيم صدقه",18,"احمد علاء محمد عطيه",18,"احمد ابراهيم عبد القادر صالح",18,"حسين",18," تيسير ا",18," محفوظ",18," مسلم 18",18,"ابراهيم محمد ابراهيم العقرباوي",18,"ابراهيم ابراهيم ",18,"ابراهيم احمد عبد القادر صالح",18,"ابراهيم  خالد ابراهيم المدانات",18,"ابراهيم عيسى ",18,"ابراهيم ",18,"ايهم",18,"اسد "]
[19,"احمد ",19," زهدي ",19," اسامة  يحيى",19," صلاح الدين ",19," وسيم ",19,"احمد",19," خليل ",19," ناصر ",19,"ابراهيم احمد موسى خضر",19,"ابراهيم صالح ابراهيم صدقه",19,"احمد علاء محمد عطيه",19,"احمد ابراهيم عبد القادر صالح",19,"حسين",19," تيسير ا",19," محفوظ",19," مسلم 19",19,"ابراهيم محمد ابراهيم العقرباوي",19,"ابراهيم ابراهيم ",19,"ابراهيم احمد عبد القادر صالح",19,"ابراهيم  خالد ابراهيم المدانات",19,"ابراهيم عيسى ",19,"ابراهيم ",19,"ايهم",19,"اسد "]
[20,"احمد ",20," زهدي ",20," اسامة  يحيى",20," صلاح الدين ",20," وسيم ",20,"احمد",20," خليل ",20," ناصر ",20,"ابراهيم احمد موسى خضر",20,"ابراهيم صالح ابراهيم صدقه",20,"احمد علاء محمد عطيه",20,"احمد ابراهيم عبد القادر صالح",20,"حسين",20," تيسير ا",20," محفوظ",20," مسلم 20",20,"ابراهيم محمد ابراهيم العقرباوي",20,"ابراهيم ابراهيم ",20,"ابراهيم احمد عبد القادر صالح",20,"ابراهيم  خالد ابراهيم المدانات",20,"ابراهيم عيسى ",20,"ابراهيم ",20,"ايهم",20,"اسد "]
[21,"احمد ",21," زهدي ",21," اسامة  يحيى",21," صلاح الدين ",21," وسيم ",21,"احمد",21," خليل ",21," ناصر ",21,"ابراهيم احمد موسى خضر",21,"ابراهيم صالح ابراهيم صدقه",21,"احمد علاء محمد عطيه",21,"احمد ابراهيم عبد القادر صالح",21,"حسين",21," تيسير ا",21," محفوظ",21," مسلم 21",21,"ابراهيم محمد ابراهيم العقرباوي",21,"ابراهيم ابراهيم ",21,"ابراهيم احمد عبد القادر صالح",21,"ابراهيم  خالد ابراهيم المدانات",21,"ابراهيم عيسى ",21,"ابراهيم ",21,"ايهم",21,"اسد "]
[22,"احمد ",22," زهدي ",22," اسامة  يحيى",22," صلاح الدين ",22," وسيم ",22,"احمد",22," خليل ",22," ناصر ",22,"ابراهيم احمد موسى خضر",22,"ابراهيم صالح ابراهيم صدقه",22,"احمد علاء محمد عطيه",22,"احمد ابراهيم عبد القادر صالح",22,"حسين",22," تيسير ا",22," محفوظ",22," مسلم 22",22,"ابراهيم محمد ابراهيم العقرباوي",22,"ابراهيم ابراهيم ",22,"ابراهيم احمد عبد القادر صالح",22,"ابراهيم  خالد ابراهيم المدانات",22,"ابراهيم عيسى ",22,"ابراهيم ",22,"ايهم",22,"اسد "]
[23,"احمد ",23," زهدي ",23," اسامة  يحيى",23," صلاح الدين ",23," وسيم ",23,"احمد",23," خليل ",23," ناصر ",23,"ابراهيم احمد موسى خضر",23,"ابراهيم صالح ابراهيم صدقه",23,"احمد علاء محمد عطيه",23,"احمد ابراهيم عبد القادر صالح",23,"حسين",23," تيسير ا",23," محفوظ",23," مسلم 23",23,"ابراهيم محمد ابراهيم العقرباوي",23,"ابراهيم ابراهيم ",23,"ابراهيم احمد عبد القادر صالح",23,"ابراهيم  خالد ابراهيم المدانات",23,"ابراهيم عيسى ",23,"ابراهيم ",23,"ايهم",23,"اسد "]
[24,"احمد ",24," زهدي ",24," اسامة  يحيى",24," صلاح الدين ",24," وسيم ",24,"احمد",24," خليل ",24," ناصر ",24,"ابراهيم احمد موسى خضر",24,"ابراهيم صالح ابراهيم صدقه",24,"احمد علاء محمد عطيه",24,"احمد ابراهيم عبد القادر صالح",24,"حسين",24," تيسير ا",24," محفوظ",24," مسلم 24",24,"ابراهيم محمد ابراهيم العقرباوي",24,"ابراهيم ابراهيم ",24,"ابراهيم احمد عبد القادر صالح",24,"ابراهيم  خالد ابراهيم المدانات",24,"ابراهيم عيسى ",24,"ابراهيم ",24,"ايهم",24,"اسد "]
[25,"احمد ",25," زهدي ",25," اسامة  يحيى",25," صلاح الدين ",25," وسيم ",25,"احمد",25," خليل ",25," ناصر ",25,"ابراهيم احمد موسى خضر",25,"ابراهيم صالح ابراهيم صدقه",25,"احمد علاء محمد عطيه",25,"احمد ابراهيم عبد القادر صالح",25,"حسين",25," تيسير ا",25," محفوظ",25," مسلم 25",25,"ابراهيم محمد ابراهيم العقرباوي",25,"ابراهيم ابراهيم ",25,"ابراهيم احمد عبد القادر صالح",25,"ابراهيم  خالد ابراهيم المدانات",25,"ابراهيم عيسى ",25,"ابراهيم ",25,"ايهم",25,"اسد "]
[26,"احمد ",26," زهدي ",26," اسامة  يحيى",26," صلاح الدين ",26," وسيم ",26,"احمد",26," خليل ",26," ناصر ",26,"ابراهيم احمد موسى خضر",26,"ابراهيم صالح ابراهيم صدقه",26,"احمد علاء محمد عطيه",26,"احمد ابراهيم عبد القادر صالح",26,"حسين",26," تيسير ا",26," محفوظ",26," مسلم 26",26,"ابراهيم محمد ابراهيم العقرباوي",26,"ابراهيم ابراهيم ",26,"ابراهيم احمد عبد القادر صالح",26,"ابراهيم  خالد ابراهيم المدانات",26,"ابراهيم عيسى ",26,"ابراهيم ",26,"ايهم",26,"اسد "]
[27,"احمد ",27," زهدي ",27," اسامة  يحيى",27," صلاح الدين ",27," وسيم ",27,"احمد",27," خليل ",27," ناصر ",27,"ابراهيم احمد موسى خضر",27,"ابراهيم صالح ابراهيم صدقه",27,"احمد علاء محمد عطيه",27,"احمد ابراهيم عبد القادر صالح",27,"حسين",27," تيسير ا",27," محفوظ",27," مسلم 27",27,"ابراهيم محمد ابراهيم العقرباوي",27,"ابراهيم ابراهيم ",27,"ابراهيم احمد عبد القادر صالح",27,"ابراهيم  خالد ابراهيم المدانات",27,"ابراهيم عيسى ",27,"ابراهيم ",27,"ايهم",27,"اسد "]
[28,"احمد ",28," زهدي ",28," اسامة  يحيى",28," صلاح الدين ",28," وسيم ",28,"احمد",28," خليل ",28," ناصر ",28,"ابراهيم احمد موسى خضر",28,"ابراهيم صالح ابراهيم صدقه",28,"احمد علاء محمد عطيه",28,"احمد ابراهيم عبد القادر صالح",28,"حسين",28," تيسير ا",28," محفوظ",28," مسلم 28",28,"ابراهيم محمد ابراهيم العقرباوي",28,"ابراهيم ابراهيم ",28,"ابراهيم احمد عبد القادر صالح",28,"ابراهيم  خالد ابراهيم المدانات",28,"ابراهيم عيسى ",28,"ابراهيم ",28,"ايهم",28,"اسد "]
[29,"احمد ",29," زهدي ",29," اسامة  يحيى",29," صلاح الدين ",29," وسيم ",29,"احمد",29," خليل ",29," ناصر ",29,"ابراهيم احمد موسى خضر",29,"ابراهيم صالح ابراهيم صدقه",29,"احمد علاء محمد عطيه",29,"احمد ابراهيم عبد القادر صالح",29,"حسين",29," تيسير ا",29," محفوظ",29," مسلم 29",29,"ابراهيم محمد ابراهيم العقرباوي",29,"ابراهيم ابراهيم ",29,"ابراهيم احمد عبد القادر صالح",29,"ابراهيم  خالد ابراهيم المدانات",29,"ابراهيم عيسى ",29,"ابراهيم ",29,"ايهم",29,"اسد "]
[30,"احمد ",30," زهدي ",30," اسامة  يحيى",30," صلاح الدين ",30," وسيم ",30,"احمد",30," خليل ",30," ناصر ",30,"ابراهيم احمد موسى خضر",30,"ابراهيم صالح ابراهيم صدقه",30,"احمد علاء محمد عطيه",30,"احمد ابراهيم عبد القادر صالح",30,"حسين",30," تيسير ا",30," محفوظ",30," مسلم 30",30,"ابراهيم محمد ابراهيم العقرباوي",30,"ابراهيم ابراهيم ",30,"ابراهيم احمد عبد القادر صالح",30,"ابراهيم  خالد ابراهيم المدانات",30,"ابراهيم عيسى ",30,"ابراهيم ",30,"ايهم",30,"اسد "]
[31,"احمد ",31," زهدي ",31," اسامة  يحيى",31," صلاح الدين ",31," وسيم ",31,"احمد",31," خليل ",31," ناصر ",31,"ابراهيم احمد موسى خضر",31,"ابراهيم صالح ابراهيم صدقه",31,"احمد علاء محمد عطيه",31,"احمد ابراهيم عبد القادر صالح",31,"حسين",31," تيسير ا",31," محفوظ",31," مسلم 31",31,"ابراهيم محمد ابراهيم العقرباوي",31,"ابراهيم ابراهيم ",31,"ابراهيم احمد عبد القادر صالح",31,"ابراهيم  خالد ابراهيم المدانات",31,"ابراهيم عيسى ",31,"ابراهيم ",31,"ايهم",31,"اسد "]
[32,"احمد ",32," زهدي ",32," اسامة  يحيى",32," صلاح الدين ",32," وسيم ",32,"احمد",32," خليل ",32," ناصر ",32,"ابراهيم احمد موسى خضر",32,"ابراهيم صالح ابراهيم صدقه",32,"احمد علاء محمد عطيه",32,"احمد ابراهيم عبد القادر صالح",32,"حسين",32," تيسير ا",32," محفوظ",32," مسلم 32",32,"ابراهيم محمد ابراهيم العقرباوي",32,"ابراهيم ابراهيم ",32,"ابراهيم احمد عبد القادر صالح",32,"ابراهيم  خالد ابراهيم المدانات",32,"ابراهيم عيسى ",32,"ابراهيم ",32,"ايهم",32,"اسد "]
[33,"احمد ",33," زهدي ",33," اسامة  يحيى",33," صلاح الدين ",33," وسيم ",33,"احمد",33," خليل ",33," ناصر ",33,"ابراهيم احمد موسى خضر",33,"ابراهيم صالح ابراهيم صدقه",33,"احمد علاء محمد عطيه",33,"احمد ابراهيم عبد القادر صالح",33,"حسين",33," تيسير ا",33," محفوظ",33," مسلم 33",33,"ابراهيم محمد ابراهيم العقرباوي",33,"ابراهيم ابراهيم ",33,"ابراهيم احمد عبد القادر صالح",33,"ابراهيم  خالد ابراهيم المدانات",33,"ابراهيم عيسى ",33,"ابراهيم ",33,"ايهم",33,"اسد "]
[34,"احمد ",34," زهدي ",34," اسامة  يحيى",34," صلاح الدين ",34," وسيم ",34,"احمد",34," خليل ",34," ناصر ",34,"ابراهيم احمد موسى خضر",34,"ابراهيم صالح ابراهيم صدقه",34,"احمد علاء محمد عطيه",34,"احمد ابراهيم عبد القادر صالح",34,"حسين",34," تيسير ا",34," محفوظ",34," مسلم 34",34,"ابراهيم محمد ابراهيم العقرباوي",34,"ابراهيم ابراهيم ",34,"ابراهيم احمد عبد القادر صالح",34,"ابراهيم  خالد ابراهيم المدانات",34,"ابراهيم عيسى ",34,"ابراهيم ",34,"ايهم",34,"اسد "]
[35,"احمد ",35," زهدي ",35," اسامة  يحيى",35," صلاح الدين ",35," وسيم ",35,"احمد",35," خليل ",35," ناصر ",35,"ابراهيم احمد موسى خضر",35,"ابراهيم صالح ابراهيم صدقه",35,"احمد علاء محمد عطيه",35,"احمد ابراهيم عبد القادر صالح",35,"حسين",35," تيسير ا",35," محفوظ",35," مسلم 35",35,"ابراهيم محمد ابراهيم العقرباوي",35,"ابراهيم ابراهيم ",35,"ابراهيم احمد عبد القادر صالح",35,"ابراهيم  خالد ابراهيم المدانات",35,"ابراهيم عيسى ",35,"ابراهيم ",35,"ايهم",35,"اسد "]
[36,"احمد ",36," زهدي ",36," اسامة  يحيى",36," صلاح الدين ",36," وسيم ",36,"احمد",36," خليل ",36," ناصر ",36,"ابراهيم احمد موسى خضر",36,"ابراهيم صالح ابراهيم صدقه",36,"احمد علاء محمد عطيه",36,"احمد ابراهيم عبد القادر صالح",36,"حسين",36," تيسير ا",36," محفوظ",36," مسلم 36",36,"ابراهيم محمد ابراهيم العقرباوي",36,"ابراهيم ابراهيم ",36,"ابراهيم احمد عبد القادر صالح",36,"ابراهيم  خالد ابراهيم المدانات",36,"ابراهيم عيسى ",36,"ابراهيم ",36,"ايهم",36,"اسد "]
[37,"احمد ",37," زهدي ",37," اسامة  يحيى",37," صلاح الدين ",37," وسيم ",37,"احمد",37," خليل ",37," ناصر ",37,"ابراهيم احمد موسى خضر",37,"ابراهيم صالح ابراهيم صدقه",37,"احمد علاء محمد عطيه",37,"احمد ابراهيم عبد القادر صالح",37,"حسين",37," تيسير ا",37," محفوظ",37," مسلم 37",37,"ابراهيم محمد ابراهيم العقرباوي",37,"ابراهيم ابراهيم ",37,"ابراهيم احمد عبد القادر صالح",37,"ابراهيم  خالد ابراهيم المدانات",37,"ابراهيم عيسى ",37,"ابراهيم ",37,"ايهم",37,"اسد "]
[38,"احمد ",38," زهدي ",38," اسامة  يحيى",38," صلاح الدين ",38," وسيم ",38,"احمد",38," خليل ",38," ناصر ",38,"ابراهيم احمد موسى خضر",38,"ابراهيم صالح ابراهيم صدقه",38,"احمد علاء محمد عطيه",38,"احمد ابراهيم عبد القادر صالح",38,"حسين",38," تيسير ا",38," محفوظ",38," مسلم 38",38,"ابراهيم محمد ابراهيم العقرباوي",38,"ابراهيم ابراهيم ",38,"ابراهيم احمد عبد القادر صالح",38,"ابراهيم  خالد ابراهيم المدانات",38,"ابراهيم عيسى ",38,"ابراهيم ",38,"ايهم",38,"اسد "]
[39,"احمد ",39," زهدي ",39," اسامة  يحيى",39," صلاح الدين ",39," وسيم ",39,"احمد",39," خليل ",39," ناصر ",39,"ابراهيم احمد موسى خضر",39,"ابراهيم صالح ابراهيم صدقه",39,"احمد علاء محمد عطيه",39,"احمد ابراهيم عبد القادر صالح",39,"حسين",39," تيسير ا",39," محفوظ",39," مسلم 39",39,"ابراهيم محمد ابراهيم العقرباوي",39,"ابراهيم ابراهيم ",39,"ابراهيم احمد عبد القادر صالح",39,"ابراهيم  خالد ابراهيم المدانات",39,"ابراهيم عيسى ",39,"ابراهيم ",39,"ايهم",39,"اسد "]
[40,"احمد ",40," زهدي ",40," اسامة  يحيى",40," صلاح الدين ",40," وسيم ",40,"احمد",40," خليل ",40," ناصر ",40,"ابراهيم احمد موسى خضر",40,"ابراهيم صالح ابراهيم صدقه",40,"احمد علاء محمد عطيه",40,"احمد ابراهيم عبد القادر صالح",40,"حسين",40," تيسير ا",40," محفوظ",40," مسلم 40",40,"ابراهيم محمد ابراهيم العقرباوي",40,"ابراهيم ابراهيم ",40,"ابراهيم احمد عبد القادر صالح",40,"ابراهيم  خالد ابراهيم المدانات",40,"ابراهيم عيسى ",40,"ابراهيم ",40,"ايهم",40,"اسد "]
[41,"احمد ",41," زهدي ",41," اسامة  يحيى",41," صلاح الدين ",41," وسيم ",41,"احمد",41," خليل ",41," ناصر ",41,"ابراهيم احمد موسى خضر",41,"ابراهيم صالح ابراهيم صدقه",41,"احمد علاء محمد عطيه",41,"احمد ابراهيم عبد القادر صالح",41,"حسين",41," تيسير ا",41," محفوظ",41," مسلم 41",41,"ابراهيم محمد ابراهيم العقرباوي",41,"ابراهيم ابراهيم ",41,"ابراهيم احمد عبد القادر صالح",41,"ابراهيم  خالد ابراهيم المدانات",41,"ابراهيم عيسى ",41,"ابراهيم ",41,"ايهم",41,"اسد "]
[42,"احمد ",42," زهدي ",42," اسامة  يحيى",42," صلاح الدين ",42," وسيم ",42,"احمد",42," خليل ",42," ناصر ",42,"ابراهيم احمد موسى خضر",42,"ابراهيم صالح ابراهيم صدقه",42,"احمد علاء محمد عطيه",42,"احمد ابراهيم عبد القادر صالح",42,"حسين",42," تيسير ا",42," محفوظ",42," مسلم 42",42,"ابراهيم محمد ابراهيم العقرباوي",42,"ابراهيم ابراهيم ",42,"ابراهيم احمد عبد القادر صالح",42,"ابراهيم  خالد ابراهيم المدانات",42,"ابراهيم عيسى ",42,"ابراهيم ",42,"ايهم",42,"اسد "]
[43,"احمد ",43," زهدي ",43," اسامة  يحيى",43," صلاح الدين ",43," وسيم ",43,"احمد",43," خليل ",43," ناصر ",43,"ابراهيم احمد موسى خضر",43,"ابراهيم صالح ابراهيم صدقه",43,"احمد علاء محمد عطيه",43,"احمد ابراهيم عبد القادر صالح",43,"حسين",43," تيسير ا",43," محفوظ",43," مسلم 43",43,"ابراهيم محمد ابراهيم العقرباوي",43,"ابراهيم ابراهيم ",43,"ابراهيم احمد عبد القادر صالح",43,"ابراهيم  خالد ابراهيم المدانات",43,"ابراهيم عيسى ",43,"ابراهيم ",43,"ايهم",43,"اسد "]
[44,"احمد ",44," زهدي ",44," اسامة  يحيى",44," صلاح الدين ",44," وسيم ",44,"احمد",44," خليل ",44," ناصر ",44,"ابراهيم احمد موسى خضر",44,"ابراهيم صالح ابراهيم صدقه",44,"احمد علاء محمد عطيه",44,"احمد ابراهيم عبد القادر صالح",44,"حسين",44," تيسير ا",44," محفوظ",44," مسلم 44",44,"ابراهيم محمد ابراهيم العقرباوي",44,"ابراهيم ابراهيم ",44,"ابراهيم احمد عبد القادر صالح",44,"ابراهيم  خالد ابراهيم المدانات",44,"ابراهيم عيسى ",44,"ابراهيم ",44,"ايهم",44,"اسد "]
[45,"احمد ",45," زهدي ",45," اسامة  يحيى",45," صلاح الدين ",45," وسيم ",45,"احمد",45," خليل ",45," ناصر ",45,"ابراهيم احمد موسى خضر",45,"ابراهيم صالح ابراهيم صدقه",45,"احمد علاء محمد عطيه",45,"احمد ابراهيم عبد القادر صالح",45,"حسين",45," تيسير ا",45," محفوظ",45," مسلم 45",45,"ابراهيم محمد ابراهيم العقرباوي",45,"ابراهيم ابراهيم ",45,"ابراهيم احمد عبد القادر صالح",45,"ابراهيم  خالد ابراهيم المدانات",45,"ابراهيم عيسى ",45,"ابراهيم ",45,"ايهم",45,"اسد "]
[46,"احمد ",46," زهدي ",46," اسامة  يحيى",46," صلاح الدين ",46," وسيم ",46,"احمد",46," خليل ",46," ناصر ",46,"ابراهيم احمد موسى خضر",46,"ابراهيم صالح ابراهيم صدقه",46,"احمد علاء محمد عطيه",46,"احمد ابراهيم عبد القادر صالح",46,"حسين",46," تيسير ا",46," محفوظ",46," مسلم 46",46,"ابراهيم محمد ابراهيم العقرباوي",46,"ابراهيم ابراهيم ",46,"ابراهيم احمد عبد القادر صالح",46,"ابراهيم  خالد ابراهيم المدانات",46,"ابراهيم عيسى ",46,"ابراهيم ",46,"ايهم",46,"اسد "]
[47,"احمد ",47," زهدي ",47," اسامة  يحيى",47," صلاح الدين ",47," وسيم ",47,"احمد",47," خليل ",47," ناصر ",47,"ابراهيم احمد موسى خضر",47,"ابراهيم صالح ابراهيم صدقه",47,"احمد علاء محمد عطيه",47,"احمد ابراهيم عبد القادر صالح",47,"حسين",47," تيسير ا",47," محفوظ",47," مسلم 47",47,"ابراهيم محمد ابراهيم العقرباوي",47,"ابراهيم ابراهيم ",47,"ابراهيم احمد عبد القادر صالح",47,"ابراهيم  خالد ابراهيم المدانات",47,"ابراهيم عيسى ",47,"ابراهيم ",47,"ايهم",47,"اسد "]
[48,"احمد ",48," زهدي ",48," اسامة  يحيى",48," صلاح الدين ",48," وسيم ",48,"احمد",48," خليل ",48," ناصر ",48,"ابراهيم احمد موسى خضر",48,"ابراهيم صالح ابراهيم صدقه",48,"احمد علاء محمد عطيه",48,"احمد ابراهيم عبد القادر صالح",48,"حسين",48," تيسير ا",48," محفوظ",48," مسلم 48",48,"ابراهيم محمد ابراهيم العقرباوي",48,"ابراهيم ابراهيم ",48,"ابراهيم احمد عبد القادر صالح",48,"ابراهيم  خالد ابراهيم المدانات",48,"ابراهيم عيسى ",48,"ابراهيم ",48,"ايهم",48,"اسد "]
[49,"احمد ",49," زهدي ",49," اسامة  يحيى",49," صلاح الدين ",49," وسيم ",49,"احمد",49," خليل ",49," ناصر ",49,"ابراهيم احمد موسى خضر",49,"ابراهيم صالح ابراهيم صدقه",49,"احمد علاء محمد عطيه",49,"احمد ابراهيم عبد القادر صالح",49,"حسين",49," تيسير ا",49," محفوظ",49," مسلم 49",49,"ابراهيم محمد ابراهيم العقرباوي",49,"ابراهيم ابراهيم ",49,"ابراهيم احمد عبد القادر صالح",49,"ابراهيم  خالد ابراهيم المدانات",49,"ابراهيم عيسى ",49,"ابراهيم ",49,"ايهم",49,"اسد "]
[50,"احمد ",50," زهدي ",50," اسامة  يحيى",50," صلاح الدين ",50," وسيم ",50,"احمد",50," خليل ",50," ناصر ",50,"ابراهيم احمد موسى خضر",50,"ابراهيم صالح ابراهيم صدقه",50,"احمد علاء محمد عطيه",50,"احمد ابراهيم عبد القادر صالح",50,"حسين",50," تيسير ا",50," محفوظ",50," مسلم 50",50,"ابراهيم محمد ابراهيم العقرباوي",50,"ابراهيم ابراهيم ",50,"ابراهيم احمد عبد القادر صالح",50,"ابراهيم  خالد ابراهيم المدانات",50,"ابراهيم عيسى ",50,"ابراهيم ",50,"ايهم",50,"اسد "]
[51,"احمد ",51," زهدي ",51," اسامة  يحيى",51," صلاح الدين ",51," وسيم ",51,"احمد",51," خليل ",51," ناصر ",51,"ابراهيم احمد موسى خضر",51,"ابراهيم صالح ابراهيم صدقه",51,"احمد علاء محمد عطيه",51,"احمد ابراهيم عبد القادر صالح",51,"حسين",51," تيسير ا",51," محفوظ",51," مسلم 51",51,"ابراهيم محمد ابراهيم العقرباوي",51,"ابراهيم ابراهيم ",51,"ابراهيم احمد عبد القادر صالح",51,"ابراهيم  خالد ابراهيم المدانات",51,"ابراهيم عيسى ",51,"ابراهيم ",51,"ايهم",51,"اسد "]
[52,"احمد ",52," زهدي ",52," اسامة  يحيى",52," صلاح الدين ",52," وسيم ",52,"احمد",52," خليل ",52," ناصر ",52,"ابراهيم احمد موسى خضر",52,"ابراهيم صالح ابراهيم صدقه",52,"احمد علاء محمد عطيه",52,"احمد ابراهيم عبد القادر صالح",52,"حسين",52," تيسير ا",52," محفوظ",52," مسلم 52",52,"ابراهيم محمد ابراهيم العقرباوي",52,"ابراهيم ابراهيم ",52,"ابراهيم احمد عبد القادر صالح",52,"ابراهيم  خالد ابراهيم المدانات",52,"ابراهيم عيسى ",52,"ابراهيم ",52,"ايهم",52,"اسد "]
[53,"احمد ",53," زهدي ",53," اسامة  يحيى",53," صلاح الدين ",53," وسيم ",53,"احمد",53," خليل ",53," ناصر ",53,"ابراهيم احمد موسى خضر",53,"ابراهيم صالح ابراهيم صدقه",53,"احمد علاء محمد عطيه",53,"احمد ابراهيم عبد القادر صالح",53,"حسين",53," تيسير ا",53," محفوظ",53," مسلم 53",53,"ابراهيم محمد ابراهيم العقرباوي",53,"ابراهيم ابراهيم ",53,"ابراهيم احمد عبد القادر صالح",53,"ابراهيم  خالد ابراهيم المدانات",53,"ابراهيم عيسى ",53,"ابراهيم ",53,"ايهم",53,"اسد "]
[54,"احمد ",54," زهدي ",54," اسامة  يحيى",54," صلاح الدين ",54," وسيم ",54,"احمد",54," خليل ",54," ناصر ",54,"ابراهيم احمد موسى خضر",54,"ابراهيم صالح ابراهيم صدقه",54,"احمد علاء محمد عطيه",54,"احمد ابراهيم عبد القادر صالح",54,"حسين",54," تيسير ا",54," محفوظ",54," مسلم 54",54,"ابراهيم محمد ابراهيم العقرباوي",54,"ابراهيم ابراهيم ",54,"ابراهيم احمد عبد القادر صالح",54,"ابراهيم  خالد ابراهيم المدانات",54,"ابراهيم عيسى ",54,"ابراهيم ",54,"ايهم",54,"اسد "]
[55,"احمد ",55," زهدي ",55," اسامة  يحيى",55," صلاح الدين ",55," وسيم ",55,"احمد",55," خليل ",55," ناصر ",55,"ابراهيم احمد موسى خضر",55,"ابراهيم صالح ابراهيم صدقه",55,"احمد علاء محمد عطيه",55,"احمد ابراهيم عبد القادر صالح",55,"حسين",55," تيسير ا",55," محفوظ",55," مسلم 55",55,"ابراهيم محمد ابراهيم العقرباوي",55,"ابراهيم ابراهيم ",55,"ابراهيم احمد عبد القادر صالح",55,"ابراهيم  خالد ابراهيم المدانات",55,"ابراهيم عيسى ",55,"ابراهيم ",55,"ايهم",55,"اسد "]
[56,"احمد ",56," زهدي ",56," اسامة  يحيى",56," صلاح الدين ",56," وسيم ",56,"احمد",56," خليل ",56," ناصر ",56,"ابراهيم احمد موسى خضر",56,"ابراهيم صالح ابراهيم صدقه",56,"احمد علاء محمد عطيه",56,"احمد ابراهيم عبد القادر صالح",56,"حسين",56," تيسير ا",56," محفوظ",56," مسلم 56",56,"ابراهيم محمد ابراهيم العقرباوي",56,"ابراهيم ابراهيم ",56,"ابراهيم احمد عبد القادر صالح",56,"ابراهيم  خالد ابراهيم المدانات",56,"ابراهيم عيسى ",56,"ابراهيم ",56,"ايهم",56,"اسد "]
[57,"احمد ",57," زهدي ",57," اسامة  يحيى",57," صلاح الدين ",57," وسيم ",57,"احمد",57," خليل ",57," ناصر ",57,"ابراهيم احمد موسى خضر",57,"ابراهيم صالح ابراهيم صدقه",57,"احمد علاء محمد عطيه",57,"احمد ابراهيم عبد القادر صالح",57,"حسين",57," تيسير ا",57," محفوظ",57," مسلم 57",57,"ابراهيم محمد ابراهيم العقرباوي",57,"ابراهيم ابراهيم ",57,"ابراهيم احمد عبد القادر صالح",57,"ابراهيم  خالد ابراهيم المدانات",57,"ابراهيم عيسى ",57,"ابراهيم ",57,"ايهم",57,"اسد "]
[58,"احمد ",58," زهدي ",58," اسامة  يحيى",58," صلاح الدين ",58," وسيم ",58,"احمد",58," خليل ",58," ناصر ",58,"ابراهيم احمد موسى خضر",58,"ابراهيم صالح ابراهيم صدقه",58,"احمد علاء محمد عطيه",58,"احمد ابراهيم عبد القادر صالح",58,"حسين",58," تيسير ا",58," محفوظ",58," مسلم 58",58,"ابراهيم محمد ابراهيم العقرباوي",58,"ابراهيم ابراهيم ",58,"ابراهيم احمد عبد القادر صالح",58,"ابراهيم  خالد ابراهيم المدانات",58,"ابراهيم عيسى ",58,"ابراهيم ",58,"ايهم",58,"اسد "]
[59,"احمد ",59," زهدي ",59," اسامة  يحيى",59," صلاح الدين ",59," وسيم ",59,"احمد",59," خليل ",59," ناصر ",59,"ابراهيم احمد موسى خضر",59,"ابراهيم صالح ابراهيم صدقه",59,"احمد علاء محمد عطيه",59,"احمد ابراهيم عبد القادر صالح",59,"حسين",59," تيسير ا",59," محفوظ",59," مسلم 59",59,"ابراهيم محمد ابراهيم العقرباوي",59,"ابراهيم ابراهيم ",59,"ابراهيم احمد عبد القادر صالح",59,"ابراهيم  خالد ابراهيم المدانات",59,"ابراهيم عيسى ",59,"ابراهيم ",59,"ايهم",59,"اسد "]
[]
[]
[]
[]
[]
[]
[]
[]
[]
[]
[]
[]
[]
[]
[]
[]
[]
[]
[]
[]
[]
[]
[]
[]
[]
[]
[]
[]
[]
[]
[]
[]
[]
[null,null,null,null,null,null,null,null,93,null,null,null,null,null,null,null,93]
[null,null,null,null,null,null,null,null,94,null,null,null,null,null,null,null,94]
[null,null,null,null,null,null,null,null,95,null,null,null,null,null,null,null,95]
[null,null,null,null,null,null,null,null,96,null,null,null,null,null,null,null,96]

{"sheet":"Lists","index":1,"n_rows":29,"n_cols":6,"rows_kept":29,"cut":false,"hidden":false,"merged":[[0,0,0,5],[1,2,1,3],[1,0,1,1],[1,4,2,5],[2,0,2,1],[2,2,2,3]]}
["مدرسة \nاسماء الطلبة  للعام  2021  /2022"]
[" اســــــــــم مربــــــي الصــــــف :",null,null,null,{"$f":"\" الصف:  \"&G1","v":" الصف:  "}]
["عــــــدد طلاب الشعبـــــــــــــــة :",null,{"$f":"COUNTA(B5:B29,D5:D29,F5:F25)","v":0}]
["رقم","الاسم","رقم","الاسم","رقم","الاسم"]
[1,null,26,null,51]
[2,null,27,null,52]
[3,null,28,null,53]
[4,null,29,null,54]
[5,null,30,null,55]
[6,null,31,null,56]
[7,null,32,null,57]
[8,null,33,null,58]
[9,null,34,null,59]
[10,null,35,null,60]
[11,null,36,null,61]
[12,null,37,null,62]
[13,null,38,null,63]
[14,null,39,null,64]
[15,null,40,null,65]
[16,null,41,null,66]
[17,null,42,null,67]
[18,null,43,null,68]
[19,null,44,null,69]
[20,null,45,null,70]
[21,null,46,null,71]
[22,null,47,null,72]
[23,null,48,null,73]
[24,null,49,null,74]
[25,null,50,null,75]

{"sheet":"ورقة1","index":2,"n_rows":24,"n_cols":1,"rows_kept":24,"cut":false,"hidden":true,"merged":[]}
["العاشر أ"]
["العاشر ب"]
["العاشر ج"]
["العاشر د"]
["الحادي عشر العلمي أ"]
["الحادي عشر العلمي ب"]
["الحادي عشر العلمي ج"]
["الحادي عشر العلمي د"]
["الحادي عشر الادبي أ"]
["الحادي عشر الادبي ب"]
["الحادي عشر الادبي ج"]
["الحادي عشر الادبي د"]
["الحادي عشر الادبي هـ"]
["الحادي عشر الادبي و"]
["الثاني عشر الادبي أ"]
["الثاني عشر الادبي ب"]
["الثاني عشر الادبي ج"]
["الثاني عشر الادبي د "]
["الثاني عشر الادبي ز"]
["الثاني عشر الادبي هـ"]
["الثاني عشر الادبي و"]
["الثاني عشر العلمي ا"]
["الثاني عشر العلمي ب"]
["الثاني عشر العلمي ج"]